bitfinex/quotes_BTCUSD_20250406
["timestamp","ask_amount","ask_price","bid_price","bid_amount"]
[1743913982468,0.011978,83485.0,83484.0,0.00883815]
[1743913982677,0.011978,83485.0,83484.0,0.0003276]
[1743913985698,0.271978,83485.0,83484.0,0.00883815]
[1743913985912,0.011978,83485.0,83484.0,0.0003276]
[1743913986103,0.011978,83485.0,83484.0,0.00883815]
[1743913986242,0.011978,83485.0,83484.0,0.0003276]
[1743913986450,0.011978,83485.0,83484.0,0.00883815]
[1743913986665,0.011978,83485.0,83484.0,0.0003276]
[1743913987097,0.011978,83485.0,83484.0,0.00883636]
[1743913987525,0.011978,83485.0,83484.0,0.0003276]
[1743913994106,0.0001638,83486.0,83484.0,0.05573636]
[1743913994438,0.0001638,83486.0,83485.0,0.29831394]
[1743913994604,0.0001638,83486.0,83485.0,0.274772]
[1743913994806,0.0001638,83486.0,83485.0,0.28327936]
[1743913995147,0.0001638,83486.0,83485.0,0.40618233]
[1743913995506,0.0001638,83486.0,83485.0,0.53802233]
[1743913996125,0.0001638,83486.0,83485.0,0.40618233]
[1743913996370,0.0001638,83486.0,83485.0,0.53802233]
[1743913997622,0.2301638,83486.0,83485.0,0.53802233]
[1743913997823,0.0001638,83486.0,83485.0,0.53802233]
[1743914000590,0.0001638,83486.0,83485.0,0.53834993]
[1743914009381,0.0001638,83486.0,83485.0,0.35867793]
[1743914010377,0.0001638,83486.0,83485.0,0.37065593]
[1743914013948,0.0001638,83486.0,83485.0,0.37061593]
[1743914020323,0.0001638,83486.0,83485.0,0.00883496]
[1743914020522,0.06217456,83486.0,83485.0,0.0003276]
[1743914020749,0.0121418,83486.0,83485.0,0.0003276]
[1743914020957,0.0121418,83486.0,83485.0,0.00882268]
[1743914024186,0.2721418,83486.0,83485.0,0.00882268]
[1743914024368,0.0121418,83486.0,83485.0,0.0003276]
[1743914024587,0.0121418,83486.0,83485.0,0.00882268]
[1743914030026,0.0121418,83486.0,83485.0,0.0003276]
[1743914030547,0.0121418,83486.0,83485.0,0.00884908]
[1743914031282,0.0121418,83486.0,83485.0,0.0003276]
[1743914036433,0.2621418,83486.0,83485.0,0.0003276]
[1743914036652,0.0121418,83486.0,83485.0,0.0003276]
[1743914049127,0.2721418,83486.0,83485.0,0.0003276]
[1743914049336,0.0121418,83486.0,83485.0,0.0003276]
[1743914061420,0.04954091,83486.0,83485.0,0.0003276]
[1743914063137,0.03756291,83486.0,83485.0,0.0003276]
[1743914063341,0.0001638,83486.0,83485.0,0.0003276]
[1743914063818,0.0001638,83486.0,83485.0,0.00887128]
[1743914065719,0.0121418,83486.0,83485.0,0.00887128]
[1743914067064,0.3521418,83486.0,83485.0,0.00887128]
[1743914067268,0.38954159,83486.0,83485.0,0.00887128]
[1743914067508,1.76336522,83486.0,83485.0,0.0003276]
[1743914067676,1.77790607,83486.0,83485.0,0.0003276]
[1743914070001,1.77890607,83486.0,83485.0,0.0003276]
[1743914070414,1.78090607,83486.0,83485.0,0.0003276]
[1743914070612,1.77990607,83486.0,83485.0,0.0003276]
[1743914070934,1.78090607,83486.0,83485.0,0.0003276]
[1743914071113,1.78390607,83486.0,83485.0,0.0003276]
[1743914076335,0.5197,83472.0,83458.0,0.0492276]
[1743914081152,0.34,83472.0,83471.0,0.04571467]
[1743914081355,0.34,83473.0,83472.0,0.0471]
[1743914081570,0.34,83473.0,83472.0,0.05908]
[1743914081750,0.34,83473.0,83472.0,0.06640203]
[1743914083091,0.1076479,83474.0,83473.0,0.179697]
[1743914083238,0.1076479,83474.0,83473.0,0.226797]
[1743914083433,0.1076479,83474.0,83473.0,0.23411763]
[1743914083883,0.34,83479.0,83473.0,0.23411763]
[1743914084246,0.34,83479.0,83474.0,0.167715]
[1743914084620,0.34,83479.0,83475.0,0.00731782]
[1743914085156,0.342,83479.0,83475.0,0.00731782]
[1743914085743,0.509708,83479.0,83475.0,0.00731782]
[1743914085942,0.510708,83479.0,83475.0,0.00731782]
[1743914086475,0.001,83479.0,83477.0,0.0456]
[1743914086675,0.003,83479.0,83478.0,0.104879]
[1743914086875,0.003,83479.0,83478.0,0.11219261]
[1743914087433,0.005,83479.0,83478.0,0.11219261]
[1743914087669,0.001,83479.0,83478.0,0.11219261]
[1743914088150,0.003,83479.0,83478.0,0.11219261]
[1743914088310,0.002,83479.0,83478.0,0.11219261]
[1743914088752,0.003,83479.0,83478.0,0.11219261]
[1743914089252,0.002,83479.0,83478.0,0.11219261]
[1743914089446,0.003,83479.0,83478.0,0.11219261]
[1743914094424,0.002,83479.0,83478.0,0.11219261]
[1743914094760,0.0001638,83486.0,83480.0,0.011978]
[1743914095199,0.34,83485.0,83481.0,0.167702]
[1743914095409,0.519674,83485.0,83482.0,0.00718138]
[1743914095586,0.519674,83485.0,83480.0,0.011978]
[1743914095815,0.519674,83485.0,83481.0,0.00718279]
[1743914096009,0.519674,83485.0,83480.0,0.179681]
[1743914096210,0.519674,83485.0,83481.0,0.00718279]
[1743914096410,0.520674,83485.0,83481.0,0.00718279]
[1743914096619,0.167698,83484.0,83480.0,0.011978]
[1743914096837,0.167698,83484.0,83481.0,0.00718279]
[1743914097014,0.167698,83484.0,83480.0,0.011978]
[1743914097192,0.167698,83484.0,83481.0,0.00718279]
[1743914097394,0.167698,83484.0,83480.0,0.179681]
[1743914097593,0.167698,83484.0,83481.0,0.00718279]
[1743914097810,0.167698,83484.0,83480.0,0.179681]
[1743914098010,0.167698,83484.0,83481.0,0.00718279]
[1743914098211,0.167698,83484.0,83480.0,0.179681]
[1743914098412,0.167698,83484.0,83481.0,0.00718279]
[1743914098662,0.167698,83484.0,83480.0,0.011978]
[1743914098888,0.167698,83484.0,83482.0,0.00718138]
[1743914099010,0.167698,83484.0,83481.0,0.00718279]
[1743914099214,0.167698,83484.0,83480.0,0.011978]
[1743914099438,0.167698,83484.0,83481.0,0.00718279]
[1743914099610,0.170698,83484.0,83480.0,0.011978]
[1743914099813,0.170698,83484.0,83481.0,0.00718279]
[1743914100021,0.449698,83484.0,83480.0,0.011978]
[1743914100265,0.167698,83484.0,83481.0,0.00718279]
[1743914100462,0.34,83485.0,83482.0,0.1677]
[1743914100673,0.34,83485.0,83483.0,0.0474]
[1743914100880,0.002,83484.0,83483.0,0.05457998]
[1743914101057,0.002,83484.0,83483.0,0.227076]
[1743914101539,0.003,83484.0,83483.0,0.46903265]
[1743914101759,0.001,83484.0,83483.0,0.40565895]
[1743914101880,0.001,83484.0,83483.0,0.10307998]
[1743914102709,0.0001638,83486.0,83483.0,0.10307998]
[1743914103099,0.001,83484.0,83483.0,0.10307998]
[1743914103286,0.0011638,83484.0,83483.0,0.10307998]
[1743914103683,0.0021638,83484.0,83483.0,0.10307998]
[1743914104785,0.0011638,83484.0,83483.0,0.10307998]
[1743914105937,0.0021638,83484.0,83483.0,0.10307998]
[1743914109045,0.0021638,83484.0,83483.0,0.10218637]
[1743914109774,0.0021638,83484.0,83483.0,0.10160864]
[1743914109983,0.0021638,83484.0,83483.0,0.1001643]
[1743914110341,0.0021638,83484.0,83483.0,0.08571677]
[1743914114689,0.0021638,83484.0,83483.0,0.09769477]
[1743914115102,0.0021638,83484.0,83483.0,0.22059774]
[1743914118188,0.0021638,83484.0,83483.0,0.09769477]
[1743914118406,0.02037964,83484.0,83483.0,0.09769477]
[1743914122884,0.0021638,83484.0,83483.0,0.09769477]
[1743914126821,0.0021638,83484.0,83483.0,0.22299326]
[1743914127036,0.0021638,83484.0,83483.0,0.22059774]
[1743914131138,0.0021638,83484.0,83483.0,0.22092534]
[1743914131783,0.0021638,83484.0,83483.0,0.23183306]
[1743914138306,0.2621638,83484.0,83483.0,0.23183306]
[1743914138516,0.0021638,83484.0,83483.0,0.23183306]
[1743914141585,0.0011638,83484.0,83483.0,0.23183306]
[1743914141882,0.0001638,83487.0,83483.0,0.23183306]
[1743914141883,0.4412551,83492.0,83486.0,0.17967]
[1743914142181,0.4412551,83492.0,83487.0,0.01805522]
[1743914142482,0.4412551,83492.0,83487.0,0.18574422]
[1743914143069,0.4422551,83492.0,83487.0,0.18574422]
[1743914143491,0.4412551,83492.0,83487.0,0.18574422]
[1743914143846,0.4422551,83492.0,83487.0,0.18574422]
[1743914144049,0.4442551,83492.0,83487.0,0.18574422]
[1743914144916,0.4562321,83492.0,83487.0,0.18574422]
[1743914146027,0.4562321,83492.0,83490.0,0.167684]
[1743914146028,0.2765741,83492.0,83490.0,0.167684]
[1743914146175,0.2765741,83492.0,83491.0,0.011977]
[1743914146371,0.2765741,83492.0,83491.0,0.03003542]
[1743914146572,0.2765741,83492.0,83491.0,0.19863839]
[1743914147222,0.2745741,83492.0,83491.0,0.19863839]
[1743914147620,0.2765741,83492.0,83491.0,0.19863839]
[1743914148097,0.2755741,83492.0,83491.0,0.33051839]
[1743914148498,0.2765741,83492.0,83491.0,0.19863839]
[1743914148843,0.2765741,83492.0,83491.0,0.33047839]
[1743914151598,0.2755741,83492.0,83491.0,0.33047839]
[1743914151801,0.2735741,83492.0,83491.0,0.33047839]
[1743914152185,0.2765741,83492.0,83491.0,0.33047839]
[1743914157526,0.03080121,83492.0,83491.0,0.33047839]
[1743914158475,0.03096501,83492.0,83491.0,0.33047839]
[1743914162706,0.52920451,83500.0,83499.0,0.167666]
[1743914163036,0.52920451,83500.0,83499.0,0.18564577]
[1743914163356,0.80920451,83500.0,83499.0,0.18564577]
[1743914163556,0.52920451,83500.0,83499.0,0.167666]
[1743914163913,0.52925007,83500.0,83499.0,0.18564577]
[1743914164211,0.53025007,83500.0,83499.0,0.19762177]
[1743914164974,0.53225007,83500.0,83499.0,0.19762177]
[1743914166320,0.61908632,83500.0,83499.0,0.01797977]
[1743914166527,0.55669376,83500.0,83499.0,0.01797977]
[1743914166697,0.011977,83493.0,83488.0,0.167687]
[1743914166903,0.179657,83493.0,83488.0,0.29058997]
[1743914167107,0.179657,83493.0,83489.0,0.01799514]
[1743914168033,0.179657,83493.0,83489.0,0.18568014]
[1743914168244,0.16768,83493.0,83489.0,0.19765714]
[1743914169315,0.167678,83493.0,83489.0,0.02997214]
[1743914169520,0.011976,83494.0,83489.0,0.01799514]
[1743914169795,0.011977,83490.0,83489.0,0.01799514]
[1743914170212,0.179663,83489.0,83483.0,0.0003276]
[1743914170402,0.179667,83488.0,83484.0,0.12290297]
[1743914170614,0.179667,83488.0,83484.0,0.14089314]
[1743914171705,0.179669,83487.0,83484.0,0.14089314]
[1743914171905,0.179672,83485.0,83484.0,0.01799017]
[1743914172404,0.011978,83484.0,83483.0,0.0003276]
[1743914174054,0.0682743,83484.0,83483.0,0.0003276]
[1743914174456,0.011978,83484.0,83483.0,0.0003276]
[1743914177013,0.011978,83484.0,83483.0,0.01831931]
[1743914177224,0.011978,83484.0,83483.0,0.0003276]
[1743914177430,0.011977,83487.0,83483.0,0.01831931]
[1743914177663,0.167692,83486.0,83483.0,0.0003276]
[1743914177864,0.17967,83486.0,83484.0,0.01799017]
[1743914178308,0.011978,83485.0,83484.0,0.01799017]
[1743914178525,0.167696,83484.0,83483.0,0.0003276]
[1743914178871,0.179674,83485.0,83483.0,0.0003276]
[1743914179403,0.17967,83486.0,83483.0,0.0003276]
[1743914181735,0.17967,83486.0,83484.0,0.01799017]
[1743914186062,0.17967,83486.0,83484.0,0.01831777]
[1743914187293,0.44967,83486.0,83484.0,0.01831777]
[1743914187600,0.17967,83486.0,83484.0,0.01831777]
[1743914191985,0.167692,83486.0,83484.0,0.01831777]
[1743914192194,0.011977,83488.0,83484.0,0.18601277]
[1743914192492,0.011977,83488.0,83484.0,0.01831777]
[1743914192704,0.34,83490.0,83487.0,0.011977]
[1743914192837,0.34,83490.0,83487.0,0.179666]
[1743914193055,0.34,83490.0,83488.0,0.01799211]
[1743914193547,0.507685,83490.0,83488.0,0.01799211]
[1743914193678,0.507685,83490.0,83485.0,0.17967]
[1743914193886,0.507685,83490.0,83489.0,0.01799057]
[1743914194096,0.507685,83490.0,83485.0,0.17967]
[1743914194308,0.507685,83490.0,83489.0,0.01799057]
[1743914194804,0.507685,83490.0,83485.0,0.17967]
[1743914195005,0.519662,83490.0,83489.0,0.01799057]
[1743914195209,0.519662,83490.0,83485.0,0.17967]
[1743914195433,0.519662,83490.0,83489.0,0.01799057]
[1743914196062,0.519662,83490.0,83485.0,0.17967]
[1743914196274,0.519662,83490.0,83489.0,0.01799057]
[1743914196453,0.519662,83490.0,83485.0,0.17967]
[1743914196658,0.519662,83490.0,83489.0,0.01799057]
[1743914196858,0.519662,83490.0,83485.0,0.17967]
[1743914197038,0.519662,83490.0,83489.0,0.01799057]
[1743914197245,0.519662,83490.0,83485.0,0.17967]
[1743914197451,0.519662,83490.0,83489.0,0.01799057]
[1743914197659,0.519662,83490.0,83485.0,0.17967]
[1743914197860,0.519662,83490.0,83489.0,0.01797171]
[1743914198078,0.519662,83490.0,83485.0,0.17967]
[1743914198264,0.519662,83490.0,83489.0,0.01797171]
[1743914198443,0.519662,83490.0,83485.0,0.17967]
[1743914198646,0.519662,83490.0,83489.0,0.01797171]
[1743914198874,0.519662,83490.0,83485.0,0.17967]
[1743914199045,0.519662,83490.0,83489.0,0.01797171]
[1743914199250,0.519662,83490.0,83485.0,0.17967]
[1743914199479,0.519662,83490.0,83489.0,0.01797171]
[1743914199681,0.519662,83490.0,83485.0,0.17967]
[1743914199864,0.519662,83490.0,83489.0,0.01797171]
[1743914200072,0.519662,83490.0,83485.0,0.17967]
[1743914200273,0.519662,83490.0,83489.0,0.01797171]
[1743914200814,0.519662,83490.0,83485.0,0.17967]
[1743914201026,0.519662,83490.0,83489.0,0.01797171]
[1743914201187,0.519662,83490.0,83485.0,0.17967]
[1743914201386,0.519662,83490.0,83486.0,0.01797633]
[1743914204256,0.34,83490.0,83486.0,0.18566733]
[1743914209626,0.519663,83490.0,83486.0,0.01797633]
[1743914209967,0.167687,83489.0,83486.0,0.01797633]
[1743914210169,0.519663,83490.0,83486.0,0.01797633]
[1743914210376,0.167688,83488.0,83486.0,0.01797633]
[1743914210577,0.167688,83488.0,83484.0,0.0003276]
[1743914210774,0.167688,83488.0,83485.0,0.01795927]
[1743914216757,0.167688,83488.0,83485.0,0.01828687]
[1743914221030,0.011977,83489.0,83485.0,0.01828687]
[1743914221376,0.251468,83510.0,83485.0,0.01828687]
[1743914221377,0.3401638,83493.0,83486.0,0.011978]
[1743914221655,0.3401638,83493.0,83491.0,0.167681]
[1743914221834,0.3401638,83493.0,83492.0,0.110077]
[1743914222129,0.0001638,83493.0,83492.0,0.12803559]
[1743914228687,0.0001638,83493.0,83492.0,0.25093856]
[1743914238407,0.2301638,83493.0,83492.0,0.25093856]
[1743914238591,0.0001638,83493.0,83492.0,0.25093856]
[1743914250123,0.2901638,83493.0,83492.0,0.25093856]
[1743914250283,0.0001638,83493.0,83492.0,0.25093856]
[1743914254320,0.0001638,83493.0,83492.0,0.27264584]
[1743914254907,0.0001638,83493.0,83492.0,0.25126616]
[1743914256829,0.0001638,83493.0,83492.0,0.38342616]
[1743914260052,0.0001638,83493.0,83492.0,0.39796701]
[1743914261035,0.0001638,83493.0,83492.0,0.39896701]
[1743914261355,0.0001638,83493.0,83492.0,0.40096701]
[1743914261590,0.0001638,83493.0,83492.0,0.49787493]
[1743914262331,0.0001638,83493.0,83492.0,0.49687493]
[1743914262691,0.0001638,83493.0,83492.0,0.49887493]
[1743914263205,0.0001638,83493.0,83492.0,0.49487493]
[1743914263407,0.0001638,83493.0,83492.0,0.50087493]
[1743914273460,0.0001638,83493.0,83492.0,0.49487493]
[1743914273648,0.0001638,83493.0,83492.0,0.50187493]
[1743914275088,0.0001638,83493.0,83492.0,0.36971493]
[1743914275291,0.0001638,83493.0,83492.0,0.50167493]
[1743914275795,0.0001638,83493.0,83492.0,0.50171493]
[1743914276993,0.0001638,83493.0,83492.0,0.50167493]
[1743914279724,0.0001638,83493.0,83492.0,0.40476701]
[1743914281000,0.0001638,83493.0,83492.0,0.25826616]
[1743914281227,0.0001638,83493.0,83492.0,0.39018616]
[1743914285884,0.0001638,83493.0,83492.0,0.39010616]
[1743914288426,0.0001638,83493.0,83492.0,0.38921304]
[1743914288971,0.0001638,83493.0,83492.0,0.38831988]
[1743914289577,0.0001638,83493.0,83492.0,0.38742672]
[1743914290308,0.0001638,83493.0,83492.0,0.48250984]
[1743914292628,0.0001638,83493.0,83492.0,0.38738672]
[1743914296735,0.0001638,83493.0,83492.0,0.16016616]
[1743914296935,0.0001638,83493.0,83492.0,0.29196616]
[1743914299219,0.0001638,83493.0,83492.0,0.16016616]
[1743914299364,0.0001638,83493.0,83492.0,0.29196616]
[1743914299765,0.0001638,83493.0,83492.0,0.16016616]
[1743914299976,0.0001638,83493.0,83492.0,0.29196616]
[1743914300176,0.01816096,83493.0,83492.0,0.29196616]
[1743914300378,0.0001638,83493.0,83492.0,0.29196616]
[1743914300578,0.0001638,83493.0,83492.0,0.03726319]
[1743914314559,0.29423405,83500.0,83498.0,0.167667]
[1743914314910,0.29423405,83500.0,83499.0,0.0177764]
[1743914316959,0.29423405,83500.0,83499.0,0.0197764]
[1743914317595,0.29423405,83500.0,83499.0,0.0217764]
[1743914319425,0.29423405,83500.0,83499.0,0.0337524]
[1743914319598,0.29423405,83500.0,83499.0,0.0217764]
[1743914320014,0.29423405,83500.0,83499.0,0.0337524]
[1743914321012,0.29423405,83500.0,83499.0,0.08982364]
[1743914321216,0.29423405,83500.0,83499.0,0.15665537]
[1743914331644,0.29423405,83500.0,83499.0,0.28845537]
[1743914334734,0.29423405,83500.0,83499.0,0.1535764]
[1743914335680,0.29423405,83500.0,83499.0,0.0217764]
[1743914337014,0.52423405,83500.0,83499.0,0.0217764]
[1743914337236,0.29423405,83500.0,83499.0,0.0217764]
[1743914338465,0.29423405,83500.0,83499.0,0.0337524]
[1743914341725,0.46189805,83500.0,83499.0,0.0217764]
[1743914341932,0.47387405,83500.0,83499.0,0.0217764]
[1743914342228,0.47387405,83500.0,83499.0,0.0043276]
[1743914342898,0.47387405,83500.0,83499.0,0.0023276]
[1743914343301,0.47387405,83500.0,83499.0,0.0003276]
[1743914350161,0.81387405,83500.0,83499.0,0.0003276]
[1743914361974,1.04387405,83500.0,83499.0,0.0003276]
[1743914362233,0.81387405,83500.0,83499.0,0.0003276]
[1743914376985,1.09387405,83500.0,83499.0,0.0003276]
[1743914377278,0.81387405,83500.0,83499.0,0.0003276]
[1743914387836,1.08387405,83500.0,83499.0,0.0003276]
[1743914388042,0.81387405,83500.0,83499.0,0.0003276]
[1743914389965,0.53757299,83500.0,83499.0,0.0003276]
[1743914402122,0.77757299,83500.0,83499.0,0.0003276]
[1743914402266,0.53757299,83500.0,83499.0,0.0003276]
[1743914404530,0.35793299,83500.0,83499.0,0.0003276]
[1743914405108,0.35793299,83500.0,83499.0,0.01810741]
[1743914405351,0.36990899,83500.0,83499.0,0.01810741]
[1743914409316,0.36990899,83500.0,83499.0,0.0003276]
[1743914411780,0.519642,83499.0,83498.0,0.0459276]
[1743914417538,0.749642,83499.0,83498.0,0.0459276]
[1743914417851,0.519642,83499.0,83498.0,0.0459276]
[1743914418154,0.519642,83499.0,83498.0,0.0462552]
[1743914429217,0.01793299,83500.0,83498.0,0.0462552]
[1743914429416,0.01793299,83500.0,83499.0,0.011976]
[1743914429616,0.01793299,83500.0,83499.0,0.07614373]
[1743914431615,0.01793299,83500.0,83499.0,0.08236524]
[1743914439693,0.26793299,83500.0,83499.0,0.08236524]
[1743914440022,0.01793299,83500.0,83499.0,0.08236524]
[1743914454342,0.01793299,83500.0,83499.0,0.07936524]
[1743914455241,0.34,83507.0,83502.0,0.16766]
[1743914455442,0.34,83507.0,83503.0,0.02396133]
[1743914457051,0.351975,83507.0,83503.0,0.02396133]
[1743914457837,0.34,83507.0,83503.0,0.02396133]
[1743914458813,0.507652,83507.0,83503.0,0.02396133]
[1743914459526,0.34,83507.0,83503.0,0.02396133]
[1743914461378,0.519626,83507.0,83503.0,0.02396133]
[1743914461597,0.179626,83507.0,83503.0,0.02396133]
[1743914461758,0.34,83506.0,83501.0,0.179636]
[1743914462390,0.34,83506.0,83502.0,0.02396656]
[1743914468082,0.61,83506.0,83502.0,0.02396656]
[1743914468290,0.34,83506.0,83502.0,0.02396656]
[1743914470170,0.351975,83503.0,83502.0,0.02396656]
[1743914470502,0.011976,83500.0,83498.0,0.0003276]
[1743914470683,0.34,83499.0,83498.0,0.0003276]
[1743914472660,0.351976,83499.0,83498.0,0.0003276]
[1743914477961,0.611976,83499.0,83498.0,0.0003276]
[1743914478262,0.351976,83499.0,83498.0,0.0003276]
[1743914478489,0.351976,83499.0,83498.0,0.02432876]
[1743914478661,0.351976,83499.0,83498.0,0.0003276]
[1743914478827,0.351976,83499.0,83498.0,0.02432876]
[1743914480243,0.351976,83499.0,83498.0,0.0003276]
[1743914491923,0.011976,83499.0,83498.0,0.0003276]
[1743914494433,0.011976,83499.0,83498.0,0.0243369]
[1743914494635,0.011976,83499.0,83498.0,0.0003276]
[1743914496902,0.011976,83499.0,83498.0,0.0243369]
[1743914498182,0.011976,83499.0,83498.0,0.0003276]
[1743914499432,0.0121398,83499.0,83498.0,0.0003276]
[1743914502351,0.6021398,83499.0,83498.0,0.0003276]
[1743914502552,0.3521398,83499.0,83498.0,0.0003276]
[1743914514780,0.6121398,83499.0,83498.0,0.0003276]
[1743914514995,0.3521398,83499.0,83498.0,0.0003276]
[1743914515633,0.3521398,83499.0,83498.0,0.0243495]
[1743914515841,0.3521398,83499.0,83498.0,0.0003276]
[1743914516356,0.3521398,83499.0,83498.0,0.0243495]
[1743914516575,0.3521398,83499.0,83498.0,0.0003276]
[1743914516884,0.3521398,83499.0,83498.0,0.0243495]
[1743914517065,0.3521398,83499.0,83498.0,0.0003276]
[1743914517471,0.3521398,83499.0,83496.0,0.0477]
[1743914517472,0.011976,83497.0,83496.0,0.04600296]
[1743914517652,0.011976,83497.0,83496.0,0.07002808]
[1743914518107,0.011976,83497.0,83496.0,0.05851086]
[1743914525804,0.011976,83497.0,83496.0,0.05883846]
[1743914528307,0.351976,83497.0,83496.0,0.05883846]
[1743914529195,0.351976,83497.0,83496.0,0.02435272]
[1743914529597,0.351976,83497.0,83496.0,0.0003276]
[1743914529811,0.351976,83497.0,83496.0,0.0243449]
[1743914530002,0.351976,83497.0,83496.0,0.0003276]
[1743914530151,0.351976,83497.0,83496.0,0.0243449]
[1743914530351,0.351976,83497.0,83496.0,0.0003276]
[1743914530598,0.351976,83497.0,83496.0,0.0243449]
[1743914530806,0.351976,83497.0,83496.0,0.0003276]
[1743914531314,0.351976,83497.0,83496.0,0.0243449]
[1743914540071,0.3521398,83497.0,83496.0,0.0243449]
[1743914543435,0.3521398,83497.0,83496.0,0.0003276]
[1743914543939,0.3521398,83497.0,83496.0,0.0243407]
[1743914544139,0.3521398,83497.0,83496.0,0.0003276]
[1743914544434,0.3521398,83497.0,83496.0,0.0243407]
[1743914544670,0.3521398,83497.0,83496.0,0.0003276]
[1743914544818,0.3521398,83497.0,83496.0,0.0243407]
[1743914545023,0.3521398,83497.0,83496.0,0.0003276]
[1743914545225,0.3521398,83497.0,83496.0,0.0243407]
[1743914545394,0.3521398,83497.0,83496.0,0.0003276]
[1743914545598,0.3521398,83497.0,83496.0,0.0243407]
[1743914552963,0.6121398,83497.0,83496.0,0.0243407]
[1743914553173,0.3521398,83497.0,83496.0,0.0243407]
[1743914560732,0.3521398,83497.0,83496.0,0.0003276]
[1743914560943,0.38953254,83497.0,83496.0,0.0003276]
[1743914562316,1.39209654,83497.0,83496.0,0.0003276]
[1743914564279,1.26241754,83497.0,83496.0,0.0003276]
[1743914564484,0.97088854,83497.0,83496.0,0.0003276]
[1743914564845,0.95803254,83497.0,83496.0,0.0003276]
[1743914566134,0.90157454,83497.0,83496.0,0.0003276]
[1743914566352,0.57391454,83497.0,83496.0,0.0003276]
[1743914571406,0.38953254,83497.0,83496.0,0.0003276]
[1743914571600,0.57435354,83497.0,83496.0,0.0003276]
[1743914580545,0.3521398,83497.0,83496.0,0.0466276]
[1743914580746,0.3521398,83497.0,83496.0,0.0935276]
[1743914581743,0.3521398,83497.0,83496.0,0.11765051]
[1743914582133,0.3401638,83497.0,83496.0,0.11765051]
[1743914582359,0.3401638,83497.0,83496.0,0.12962651]
[1743914583232,0.0001638,83497.0,83496.0,0.12962651]
[1743914588219,0.179636,83502.0,83496.0,0.29729651]
[1743914589725,0.0001638,83497.0,83496.0,0.29729651]
[1743914590306,0.2601638,83497.0,83496.0,0.29729651]
[1743914590476,0.0001638,83497.0,83496.0,0.29729651]
[1743914599302,0.0001638,83497.0,83496.0,0.28532051]
[1743914599481,0.0001638,83497.0,83496.0,0.11765051]
[1743914599842,0.0001638,83497.0,83496.0,0.07135051]
[1743914600074,0.0001638,83497.0,83496.0,0.02445051]
[1743914611440,0.0121398,83497.0,83496.0,0.02445051]
[1743914611645,0.0121398,83497.0,83496.0,0.0003276]
[1743914612223,0.0121398,83497.0,83496.0,0.02443203]
[1743914612629,0.0121398,83497.0,83496.0,0.0003276]
[1743914616498,0.2521398,83497.0,83496.0,0.0003276]
[1743914616701,0.0121398,83497.0,83496.0,0.0003276]
[1743914625611,0.02337208,83497.0,83496.0,0.0003276]
[1743914627347,0.36337208,83497.0,83496.0,0.0003276]
[1743914627496,0.50841277,83497.0,83496.0,0.0003276]
[1743914627694,0.47104295,83497.0,83496.0,0.0003276]
[1743914627890,0.5084137,83497.0,83496.0,0.0003276]
[1743914628092,0.49718142,83497.0,83496.0,0.0003276]
[1743914629052,0.45981067,83497.0,83496.0,0.0003276]
[1743914630782,0.3521398,83497.0,83496.0,0.0003276]
[1743914630987,0.38950749,83497.0,83496.0,0.0003276]
[1743914632049,0.3521398,83497.0,83496.0,0.0003276]
[1743914632251,0.38950888,83497.0,83496.0,0.0003276]
[1743914633269,0.3521398,83497.0,83496.0,0.0003276]
[1743914638202,0.45994414,83497.0,83496.0,0.0003276]
[1743914640796,0.69994414,83497.0,83496.0,0.0003276]
[1743914641028,0.45994414,83497.0,83496.0,0.0003276]
[1743914646434,0.49732481,83497.0,83496.0,0.0003276]
[1743914652975,0.48534881,83497.0,83496.0,0.0003276]
[1743914653195,0.44796814,83497.0,83496.0,0.0912276]
[1743914653729,0.44796814,83497.0,83496.0,0.11535062]
[1743914653872,0.44796814,83497.0,83496.0,0.28302262]
[1743914655095,0.70796814,83497.0,83496.0,0.28302262]
[1743914655305,0.44796814,83497.0,83496.0,0.28302262]
[1743914656312,0.0001638,83497.0,83496.0,0.28302262]
[1743914661271,0.0001638,83497.0,83496.0,0.29499862]
[1743914667739,0.3401638,83497.0,83496.0,0.29499862]
[1743914678501,0.0001638,83497.0,83496.0,0.29499862]
[1743914680739,0.167648,83508.0,83501.0,0.167661]
[1743914681094,0.167648,83508.0,83502.0,0.02409339]
[1743914681297,0.167648,83508.0,83502.0,0.19175239]
[1743914682447,0.167648,83508.0,83502.0,0.20372739]
[1743914682808,0.011975,83507.0,83502.0,0.20372739]
[1743914683008,0.179626,83507.0,83502.0,0.27821203]
[1743914683239,0.167653,83506.0,83502.0,0.11055303]
[1743914683458,0.167653,83506.0,83502.0,0.03606839]
[1743914684875,0.34,83506.0,83502.0,0.20372639]
[1743914686670,0.507653,83506.0,83502.0,0.20372639]
[1743914690881,0.519628,83506.0,83502.0,0.19175139]
[1743914691181,0.351975,83506.0,83502.0,0.19175139]
[1743914691382,0.519628,83506.0,83502.0,0.19175139]
[1743914692259,0.759628,83506.0,83502.0,0.19175139]
[1743914692458,0.519628,83506.0,83502.0,0.19175139]
[1743914692767,0.5197918,83506.0,83502.0,0.19175139]
[1743914697376,0.3521388,83506.0,83502.0,0.19175139]
[1743914698574,0.5197918,83506.0,83502.0,0.19175139]
[1743914700595,0.51838271,83506.0,83502.0,0.02409339]
[1743914703241,0.34,83504.0,83502.0,0.02409339]
[1743914706224,0.34,83504.0,83502.0,0.02442079]
[1743914706677,0.507658,83503.0,83502.0,0.02442079]
[1743914709120,0.34,83503.0,83502.0,0.02442079]
[1743914712637,0.351975,83503.0,83502.0,0.02442079]
[1743914720906,0.346975,83503.0,83502.0,0.02442079]
[1743914725312,0.335,83503.0,83502.0,0.02442079]
[1743914733791,0.33,83503.0,83502.0,0.02442079]
[1743914740625,0.341975,83503.0,83502.0,0.02442079]
[1743914743754,0.336975,83503.0,83502.0,0.02442079]
[1743914745593,0.3371388,83503.0,83502.0,0.02442079]
[1743914753976,0.0121388,83503.0,83502.0,0.02442079]
[1743914754392,1.0943388,83503.0,83502.0,0.02442079]
[1743914754594,1.1192928,83503.0,83502.0,0.0003274]
[1743914754770,1.0945398,83503.0,83502.0,0.0003274]
[1743914755195,1.0364848,83503.0,83502.0,0.0003274]
[1743914755422,0.6205018,83503.0,83502.0,0.0003274]
[1743914755944,0.9605018,83503.0,83502.0,0.0003274]
[1743914759510,1.08340477,83503.0,83502.0,0.0003274]
[1743914761035,1.12750477,83503.0,83502.0,0.0003274]
[1743914762123,1.13872481,83503.0,83502.0,0.0003274]
[1743914762681,1.14372481,83503.0,83502.0,0.0003274]
[1743914762857,1.14072481,83503.0,83502.0,0.0003274]
[1743914763238,1.14172481,83503.0,83502.0,0.0003274]